Cogmind - Beta 13 @@@ ROGUE MODE // 2024.04.19 @ 22:27:12 Player: Bace Troncons Result: Destroyed by P-80 Master with Gamma Rifle Performance ------------- Evolutions (7) 3500 Regions Visited (16) 3200 Robots Destroyed (148) 740 Value Destroyed (4259) 4259 Prototype IDs (62) 1240 Alien Tech Used (0) 0 Bonus (2368) 2368 TOTAL SCORE: 15307 Bonus ------- High Alert Combat Kills 128 Follower Combat Kills 789 Entered Garrisons 200 Entered DSFs 1000 Aligned with FarCom 300 Friendly Fire -49 Cogmind --------- Core Integrity 0/1300 Matter 139/300 Energy 23/100 System Corruption 16% Temperature Cool (11) Movement Hovering (60) Location -3/Research Parts ------- > --- POWER (2) -------- (None) > --- PROPULSION (6) --- Combat Linear Gravjet > --- UTILITY (10) ----- Advanced Terrain Scan Processor Hacking Suite > --- WEAPON (3) ------- Thunder Hammer Thunder Hammer > --- INVENTORY (5) ---- Improved Antigrav System Relay Coupler [NC] (35) Relay Coupler [Specialist] (20) Advanced Datajack Improved Remote Datajack Peak State ------------ > --- POWER ------------ Particle Reactor Quantum Reactor > --- PROPULSION ------- Gravmag System Gravmag System Combat Linear Gravjet Combat Linear Gravjet Q-thruster Q-thruster > --- UTILITY ---------- Advanced Terrain Scan Processor Advanced ECM Suite Hacking Suite Hacking Suite Hacking Suite Hacking Suite Improved Hacking Suite Experimental Hacking Suite System Shield Advanced Corruption Screen > --- WEAPON ----------- Fusion Bomb Launcher Advanced Datajack Plasma Sword > --- INVENTORY -------- Relay Coupler [NC] Relay Coupler [Specialist] Nova Cannon Advanced Datajack Improved Remote Datajack [Rating: 127] Favorites ----------- Power Improved Ion Engine Engine Improved Ion Engine Power Core Light Fission Core Reactor Particle Reactor Propulsion Improved VTOL Module Treads Improved Treads Leg Improved Aluminum Leg Hover Unit Combat Linear Gravjet Flight Unit Improved VTOL Module Utility Hacking Suite Device Weight Redist. System Storage Large Storage Unit Processor Signal Interpreter Hackware Hacking Suite Protection Medium Reactive Plating Weapon Improved Light Cannon Energy Cannon Advanced Beam Cannon Ballistic Gun Improved Assault Rifle Ballistic Cannon Improved Light Cannon Launcher Mini Grenade Launcher Special Weapon Plasma Cutter Impact Weapon Heavy Flail Slashing Weapon Great Axe Special Melee Weapon Improved Datajack Build | -11 -10 -9 -9 -9 -8 -8 -7 -7 -6 -6 -5 -5 -4 -3 -3 -3 ------- Run | Yrd Mat Mat Min Exi Min Mat Fac DSF Fac Ext Fac DSF Fac Res Gar Res Slots Evolved 14 | . . 2 . . . 2 2 . 2 . 2 . 2 2 . . Power 1 | . . . . . . . . . 1 . . . . . . . Propulsion 4 | . . . . . . 2 . . . . 1 . . 1 . . Utility 8 | . . 2 . . . . 2 . . . 1 . 2 1 . . Weapon 1 | . . . . . . . . . 1 . . . . . . . Parts Attached 219 | 6 12 38 10 2 4 39 1 13 33 8 5 3 7 16 6 16 Power 35 | 1 1 3 2 . . 8 . 1 9 3 1 . . 2 1 3 Engine 17 | 1 1 3 1 . . 8 . . 2 1 . . . . . . Core 12 | . . . 1 . . . . 1 7 2 1 . . . . . Reactor 6 | . . . . . . . . . . . . . . 2 1 3 Propulsion 57 | 2 3 5 3 . . 8 1 . 10 2 2 2 2 10 2 5 Treads 13 | 2 . 4 3 . . 4 . . . . . . . . . . Leg 4 | . 3 1 . . . . . . . . . . . . . . Wheel . | . . . . . . . . . . . . . . . . . Hover 5 | . . . . . . . . . . . . . . . 2 3 Flight 35 | . . . . . . 4 1 . 10 2 2 2 2 10 . 2 Utility 45 | 1 4 3 1 1 . 10 . 4 9 1 2 1 3 2 . 3 Device 11 | . . . 1 . . 3 . . 3 1 . 1 1 . . 1 Storage 7 | 1 3 1 . 1 . 1 . . . . . . . . . . Processor 9 | . 1 . . . . 3 . . 3 . . . . 1 . 1 Hackware 15 | . . 2 . . . 1 . 4 2 . 2 . 2 1 . 1 Protection 3 | . . . . . . 2 . . 1 . . . . . . . Artifact . | . . . . . . . . . . . . . . . . . Weapon 82 | 2 4 27 4 1 4 13 . 8 5 2 . . 2 2 3 5 Energy Gun . | . . . . . . . . . . . . . . . . . Energy Cannon 4 | . . 2 1 . . . . . . . . . . . . 1 Ballistic Gun 12 | 2 . 6 . . . 4 . . . . . . . . . . Ballistic Cannon 12 | . 3 7 . . 1 1 . . . . . . . . . . Launcher 22 | . 1 5 2 . 2 4 . . 5 1 . . 1 . . 1 Special Weapon 7 | . . . 1 . 1 . . 3 . . . . . . 2 . Impact Weapon 5 | . . . . . . 2 . . . . . . . 1 . 2 Slashing Weapon 6 | . . . . . . 1 . 3 . . . . . 1 1 . Piercing Weapon . | . . . . . . . . . . . . . . . . . Special Melee Weapon 14 | . . 7 . 1 . 1 . 2 . 1 . . 1 . . 1 Unidentified Prototypes 4 | . . . . . . . 1 . . . . . 1 1 . 1 Parts Lost 67 | . . 4 7 . . 13 . 1 2 2 . 3 . 11 7 17 Power 13 | . . 2 1 . . 4 . . . 1 . . . 2 1 2 Propulsion 22 | . . 1 2 . . 4 . 1 . 1 . 1 . 6 3 3 Utility 21 | . . 1 3 . . 4 . . 1 . . 1 . . 3 8 Weapon 11 | . . . 1 . . 1 . . 1 . . 1 . 3 . 4 Highest Loss Streak 17 | . . 2 6 . . 4 . 1 1 2 . 2 . 6 6 17 To Critical Strikes 1 | . . . . . . 1 . . . . . . . . . . Average Slot Usage (%) 86 | . 95 98 85 45 47 85 84 97 94 95 94 88 92 92 75 84 Engine 6 | . 14 10 7 11 11 8 7 1 . 1 . . . . . . Core 3 | . . . 2 . . . . 5 10 11 11 11 10 6 3 . Treads 10 | . 4 16 21 22 22 22 . . . . . . . . . . Leg 3 | . 21 5 . . . . . . . . . . . . . . Hover 1 | . . . . . . . . . . . . . . . . 17 Flight 8 | . . . . . . 7 30 28 25 25 26 28 26 24 15 . Device 3 | . . . 7 . . 3 15 7 5 9 8 . 2 4 3 3 Storage 7 | . 14 11 11 11 11 13 . . . . . . . . . . Processor 7 | . 11 11 7 . . 11 7 . 3 6 5 5 5 7 8 8 Hackware 15 | . . 21 7 . . 1 . 28 28 20 23 29 31 33 32 31 Protection 1 | . . . . . . 4 7 7 . . . . . . . . Ballistic Gun 2 | . 5 7 7 . . . 7 . . . . . . . . . Ballistic Cannon 4 | . 22 11 . . 1 . . . . . . . . . . . Launcher 2 | . . . 7 . . 4 . . 3 5 5 . 5 2 . 3 Slashing Weapon 2 | . . . . . . . 7 6 6 6 5 5 5 5 2 3 Special Melee Weapon 2 | . . 1 . 1 . . . 6 6 5 5 5 5 2 . 3 Naked Turns . | . . . . . . . . . . . . . . . . . Heaviest Build 57 | 12 23 34 35 28 40 50 20 22 27 28 27 23 26 39 31 57 Greatest Support 112 | 40 40 46 46 43 43 112 27 27 29 30 34 34 33 43 30 46 Greatest Overweight (x) 7 | . 3 7 . . . . . . 1 1 . . . . 1 1 Average Overweight (x) . | . . . . . . . . . . . . . . . . . Largest Inventory Capacity 35 | 8 15 15 15 35 15 15 5 5 5 5 5 5 5 5 5 5 Average Capacity 9 | 6 9 11 15 15 15 12 5 5 5 5 5 5 5 5 5 5 Most Carried 15 | 6 10 15 15 15 15 15 5 5 5 5 5 5 5 5 5 5 Average Carried 8 | 4 8 10 13 14 14 11 4 4 4 4 3 4 3 4 4 4 Final Capacity 15 | 8 10 15 15 15 15 5 5 5 5 5 5 5 5 5 5 5 Final Carried 15 | 4 10 15 13 14 14 5 5 5 5 5 5 5 4 5 5 5 Class Distribution -------------------- 39% | Mutant 22% | Hacker-Sprinter 19% | Hacker-Mutant 6% | Wizard-Mutant 6% | Wizard-Sprinter 4% | Sprinter Dominant Class ---------------- Mutant | -10/Materials Hacker-Mutant | -9/Materials Mutant | -9/Mines Mutant | -9/Exiles Mutant | -8/Mines Mutant | -8/Materials Sprinter | -7/Factory Hacker-Sprinter | -7/DSF Hacker-Sprinter | -6/Factory Hacker-Sprinter | -6/Extension Hacker-Sprinter | -5/Factory Hacker-Sprinter | -5/DSF Wizard-Sprinter | -4/Factory Wizard-Sprinter | -3/Research Wizard-Sprinter | -3/Garrison Wizard-Mutant | -3/Research Resources | -11 -10 -9 -9 -9 -8 -8 -7 -7 -6 -6 -5 -5 -4 -3 -3 -3 ----------- Run | Yrd Mat Mat Min Exi Min Mat Fac DSF Fac Ext Fac DSF Fac Res Gar Res Matter Collected 4802 | 200 485 1151 274 . 229 849 . 169 486 667 . 33 . 219 . 40 Remotely . | . . . . . . . . . . . . . . . . . Salvage Created 4094 | . 379 1211 78 . 33 1075 . . 786 360 . . . 132 . 40 Parts 263 | . 37 89 5 . 7 62 . . 36 16 . . . 6 . 5 Haulers Intercepted 15 | . 1 3 . . . 5 . . 3 2 . . . 1 . . Recyclers Shooed . | . . . . . . . . . . . . . . . . . Parts Field Recycled . | . . . . . . . . . . . . . . . . . Retrieved Matter . | . . . . . . . . . . . . . . . . . Parts Self-Destructed . | . . . . . . . . . . . . . . . . . Prevented . | . . . . . . . . . . . . . . . . . Kills | -11 -10 -9 -9 -9 -8 -8 -7 -7 -6 -6 -5 -5 -4 -3 -3 -3 ------- Run | Yrd Mat Mat Min Exi Min Mat Fac DSF Fac Ext Fac DSF Fac Res Gar Res Combat Hostiles Destroyed 84 | . 12 32 4 . 6 25 . . 3 2 . . . . . . Melee 7 | . . . . . . 3 . . 2 2 . . . . . . Guns 17 | . 5 10 . . . 2 . . . . . . . . . . Cannons 30 | . 7 21 . . 2 . . . . . . . . . . . AOE 26 | . . 1 4 . 4 16 . . 1 . . . . . . . Classes Destroyed 14 | . 6 3 . . . 5 . . . . . . . . . . Worker 10 | . 1 2 . . . 5 . . . . . . . 2 . . Builder 5 | . . . . . . 4 . . . 1 . . . . . . Tunneler 1 | . . . . . . 1 . . . . . . . . . . Hauler 15 | . 1 3 . . . 5 . . 3 2 . . . 1 . . Recycler 2 | . . . . . . 1 . . 1 . . . . . . . Mechanic 1 | . . 1 . . . . . . . . . . . . . . Operator 15 | . 3 2 . . . 2 . . 4 2 . . . 1 . 1 Watcher 15 | . 1 4 . . . 3 . . 6 1 . . . . . . Swarmer 22 | . 6 7 . . 6 . . . 1 2 . . . . . . Grunt 45 | . 6 16 4 . . 18 . . 1 . . . . . . . Brawler 2 | . . . . . . 2 . . . . . . . . . . Duelist 1 | . . 1 . . . . . . . . . . . . . . Sentry 12 | . . 8 . . . 4 . . . . . . . . . . Hunter 2 | . . . . . . 1 . . 1 . . . . . . . Best Kill Streak 7 | . 3 7 4 . 6 6 . . 2 3 . . . 2 . 1 Combat Bots Only 6 | . 3 5 4 . 6 3 . . 1 2 . . . . . . Max Kills in Single Turn 4 | . 2 2 1 . 4 3 . . 1 1 . . . 1 . 1 Gunslinging . | . . . . . . . . . . . . . . . . . Exploded 4 | . . 1 1 . 4 2 . . 1 . . . . . . . Melee 1 | . . . . . . 1 . . 1 1 . . . . . . Uniques/NPCs Destroyed . | . . . . . . . . . . . . . . . . . Combat | -11 -10 -9 -9 -9 -8 -8 -7 -7 -6 -6 -5 -5 -4 -3 -3 -3 -------- Run | Yrd Mat Mat Min Exi Min Mat Fac DSF Fac Ext Fac DSF Fac Res Gar Res Hostile Shots Fired 802 | . 48 152 13 . 29 174 . 14 26 28 . 32 7 92 66 121 Missed 287 | . 11 49 6 . 8 64 . 5 14 14 . 13 5 38 27 33 Damage Taken 9642 | . 410 1345 582 . 162 1985 . 218 323 236 . 437 42 988 892 2022 Core 2562 | . 108 187 97 . 24 330 . 15 110 30 . 361 . 217 454 629 Absorbed by Shields 18 | . . . . . . . . . . . . 18 . . . . Ignored by Resistances 26 | . . . . . . 26 . . . . . . . . . . Regen/Repaired (Parts) 357 | . . 202 . . . . . . 38 . . . . 13 . 104 Core Remaining (%) 70 | 100 56 . . . 23 40 . 97 . 83 . 63 100 . . . Volleys Fired 251 | . 47 104 21 . 15 49 . 4 6 1 . . . . 3 1 Largest 2 | . 2 2 2 . 2 2 . 1 1 1 . . . . 1 1 Hottest 113 | . 78 91 88 . 44 74 . . 39 43 . . . . 7 113 Shots Fired 422 | . 94 207 27 . 15 64 . 4 6 1 . . . . 3 1 Gun 119 | . 34 77 . . . 8 . . . . . . . . . . Cannon 224 | . 60 127 9 . 13 14 . . . . . . . . . 1 Launcher 60 | . . 3 7 . 1 42 . . 6 1 . . . . . . Special 19 | . . . 11 . 1 . . 4 . . . . . . 3 . Kinetic 325 | . 94 196 . . 13 22 . . . . . . . . . . Thermal 29 | . . 8 20 . . . . . . . . . . . . 1 Explosive 59 | . . 3 7 . 1 42 . . 6 . . . . . . . Electromagnetic 1 | . . . . . . . . . . 1 . . . . . . Robot Hit Streak 15 | . 8 15 3 . 6 7 . 9 . . . . . . 2 3 Robot Miss Streak 5 | . 5 4 . . 1 4 . . 2 . . . . . . . Penetration Max . | . . . . . . . . . . . . . . . . . Secondary Targets 1 | . 1 . . . . . . . . . . . . . . . Max Gunslinging Chain 1 | . 1 . . . . . . . . . . . . . . . Shots Hit Robots 373 | . 40 162 2 . 11 69 . 14 28 22 . 2 . 7 2 14 Core Hits 185 | . 20 57 7 . 6 71 . . 14 6 . . . 2 . 2 Critical Kills . | . . . . . . . . . . . . . . . . . Critical Parts Destroyed 3 | . 1 . . . . 2 . . . . . . . . . . Critical Strikes 14 | . 1 5 . . 1 2 . . 1 . . . . . . 4 Destroy 1 | . 1 . . . . . . . . . . . . . . . Blast 6 | . . 5 . . 1 . . . . . . . . . . . Smash 2 | . . . . . . 2 . . . . . . . . . . Sever 5 | . . . . . . . . . 1 . . . . . . 4 Melee Attacks 423 | . . 23 . . . 71 5 18 89 43 6 6 26 72 12 52 Impact 70 | . . . . . . 67 . . . . . . . 1 . 2 Slashing 303 | . . . . . . 3 5 7 89 33 6 3 24 71 12 50 Piercing . | . . . . . . . . . . . . . . . . . Sneak Attacks 49 | . . 15 . . . 3 . 9 7 11 . . . 4 . . Combat Hostiles 9 | . . . . . . . . 9 . . . . . . . . Follow-up Attacks 1 | . . . . . . . . . . . . . . . . 1 Damage Inflicted 12852 | . 750 2793 394 . 435 4540 . . 2004 789 . . . 505 . 642 Guns 1246 | . 262 885 . . . 99 . . . . . . . . . . Cannons 2732 | . 488 1795 . . 239 163 . . . . . . . . . 47 Explosions 3716 | . . 113 394 . 196 2651 . . 286 76 . . . . . . Melee 5158 | . . . . . . 1627 . . 1718 713 . . . 505 . 595 Ramming . | . . . . . . . . . . . . . . . . . Kinetic 3869 | . 750 2618 . . 239 262 . . . . . . . . . . Thermal 308 | . . 62 . . . 199 . . . . . . . . . 47 Explosive 3441 | . . 113 394 . 196 2452 . . 286 . . . . . . . Electromagnetic 76 | . . . . . . . . . . 76 . . . . . . Impact 1658 | . . . . . . 1567 . . . . . . . . . 91 Slashing 3500 | . . . . . . 60 . . 1718 713 . . . 505 . 504 Piercing . | . . . . . . . . . . . . . . . . . Highest Corruption 16 | . 1 . 16 16 16 11 . . . 1 . . . . . 16 Average Corruption 11 | . 1 . 14 16 16 6 . . . 1 . . . . . 12 Corruption Purged . | . . . . . . . . . . . . . . . . . Corruption Blocked . | . . . . . . . . . . . . . . . . . Effects 116 | . 4 . 12 57 19 16 . . . 2 . . . . . 6 Message Errors 23 | . . . 3 10 5 4 . . . . . . . . . 1 Matter Fused 35 | . . . 2 19 7 4 . . . 2 . . . . . 1 Heat Flow Errors 19 | . 1 . 2 11 2 3 . . . . . . . . . . Energy Discharges 11 | . . . 2 5 2 2 . . . . . . . . . . Data Loss (minor) 12 | . 2 . . 6 2 2 . . . . . . . . . . Data Loss (major) 5 | . . . 2 2 . . . . . . . . . . . 1 Misfires 1 | . . . 1 . . . . . . . . . . . . . Alerts 7 | . 1 . . 4 . 1 . . . . . . . . . 1 Misdirections 2 | . . . . . . . . . . . . . . . . 2 Weapon Failures 1 | . . . . . 1 . . . . . . . . . . . Overload Shots . | . . . . . . . . . . . . . . . . . Overflow Damage 1113 | . 34 21 41 . 6 521 . . 235 98 . . . 147 . 10 Projectiles 61 | . 34 21 . . 6 . . . . . . . . . . . Explosions 133 | . . . 41 . . 45 . . 47 . . . . . . . Melee 919 | . . . . . . 476 . . 188 98 . . . 147 . 10 Knockbacks 19 | . 3 8 . . 1 6 . . . . . . . . . 1 Impact 6 | . . . . . . 5 . . . . . . . . . 1 Kinetic 12 | . 3 7 . . 1 1 . . . . . . . . . . Secondary 1 | . . 1 . . . . . . . . . . . . . . Self-Inflicted Damage 391 | . . . 64 . . 175 . . 127 25 . . . . . . Shots 12 | . . . 2 . . 7 . . 2 1 . . . . . . Rammed . | . . . . . . . . . . . . . . . . . Targets Rammed . | . . . . . . . . . . . . . . . . . Kicked . | . . . . . . . . . . . . . . . . . Crushed . | . . . . . . . . . . . . . . . . . Highest Temperature 300 | . 178 167 142 247 164 214 . . 300 88 21 . . 62 5 28 Average Temperature 56 | . 31 36 53 98 77 35 . . 121 21 7 . . 14 5 21 Received Heat Transfer 1968 | . 168 504 66 . . 774 . 36 27 27 . . . 162 114 90 Effects 3 | . . . . 2 . . . . 1 . . . . . . . Energy Bleed 3 | . . . . 2 . . . . 1 . . . . . . . Siege Activations . | . . . . . . . . . . . . . . . . . Robots Corrupted . | . . . . . . . . . . . . . . . . . Combat Hostiles . | . . . . . . . . . . . . . . . . . Parts Fried 5 | . . . . . . 5 . . . . . . . . . . Impact Corruptions 19 | . . . . . . 18 . . . . . . . . . 1 Robots Melted . | . . . . . . . . . . . . . . . . . Combat Hostiles . | . . . . . . . . . . . . . . . . . Parts Melted . | . . . . . . . . . . . . . . . . . Heat Transferred 298 | . . 111 . . . 150 . . . . . . . . . 37 Parts Sabotaged . | . . . . . . . . . . . . . . . . . Parts Stolen . | . . . . . . . . . . . . . . . . . Parts Stripped . | . . . . . . . . . . . . . . . . . Power Chain Reactions . | . . . . . . . . . . . . . . . . . Alert | -11 -10 -9 -9 -9 -8 -8 -7 -7 -6 -6 -5 -5 -4 -3 -3 -3 ------- Run | Yrd Mat Mat Min Exi Min Mat Fac DSF Fac Ext Fac DSF Fac Res Gar Res Peak Influence 891 | . 179 521 323 . 212 891 416 415 516 534 278 194 239 554 512 308 Initial 411 | . . 51 199 . . 4 411 294 217 242 254 194 86 125 363 254 Average 244 | . 65 264 188 . 16 347 412 339 272 351 268 175 150 291 433 181 Maximum Alert Level 3 | . . 2 1 . 1 3 2 2 2 2 1 . 1 2 2 1 Low Security (%) 44 | 100 100 36 55 . 95 32 . . 27 . . 100 78 42 . 57 Level 1 33 | . . 28 44 . 4 36 . 83 38 70 100 . 21 30 32 42 Level 2 20 | . . 35 . . . 19 100 16 33 29 . . . 27 67 . Level 3 1 | . . . . . . 11 . . . . . . . . . . Level 4 . | . . . . . . . . . . . . . . . . . Level 5 . | . . . . . . . . . . . . . . . . . High Security . | . . . . . . . . . . . . . . . . . Max Security . | . . . . . . . . . . . . . . . . . Squads Dispatched 38 | . 3 6 . . . 7 1 . 10 3 1 1 . 4 . 2 Investigation 19 | . 1 3 . . . 4 1 . 5 1 1 . . 2 . 1 Extermination 3 | . . . . . . . . . 2 . . . . . . 1 Reinforcement 16 | . 2 3 . . . 3 . . 3 2 . 1 . 2 . . Assault . | . . . . . . . . . . . . . . . . . Garrison . | . . . . . . . . . . . . . . . . . Intercept . | . . . . . . . . . . . . . . . . . Searches Triggered 1 | . . . . . . . . . . . . . . 1 . . Construction Impeded 2 | . . . . . . 1 . . 1 . . . . . . . Haulers Reinforced . | . . . . . . . . . . . . . . . . . Active Scanning Responses . | . . . . . . . . . . . . . . . . . Cargo Convoy Interrupts . | . . . . . . . . . . . . . . . . . Stealth | -11 -10 -9 -9 -9 -8 -8 -7 -7 -6 -6 -5 -5 -4 -3 -3 -3 --------- Run | Yrd Mat Mat Min Exi Min Mat Fac DSF Fac Ext Fac DSF Fac Res Gar Res Distress Signals 22 | . 1 8 . . . 4 . . 2 1 . . 2 2 . 2 Communications Jammed . | . . . . . . . . . . . . . . . . . Distress Signals . | . . . . . . . . . . . . . . . . . Times Spotted 272 | . 28 54 5 . 9 49 . 9 25 19 . 4 8 40 10 12 Peak Tracking Total 12 | . 5 5 4 . 4 6 . 4 6 4 . 4 5 12 8 5 Tactical Retreats 33 | . . 2 . . 1 4 . 1 3 3 . . 2 11 2 4 Traps | -11 -10 -9 -9 -9 -8 -8 -7 -7 -6 -6 -5 -5 -4 -3 -3 -3 ------- Run | Yrd Mat Mat Min Exi Min Mat Fac DSF Fac Ext Fac DSF Fac Res Gar Res Traps Triggered 21 | . 5 . . . . 3 . 2 3 2 . 2 . . 3 1 Indirectly . | . . . . . . . . . . . . . . . . . Trap Hack Attempts . | . . . . . . . . . . . . . . . . . Triggered . | . . . . . . . . . . . . . . . . . Disarmed . | . . . . . . . . . . . . . . . . . Reprogrammed 4 | . . . . . . 4 . . . . . . . . . . Reused . | . . . . . . . . . . . . . . . . . Traps Extracted . | . . . . . . . . . . . . . . . . . Installed . | . . . . . . . . . . . . . . . . . Triggered . | . . . . . . . . . . . . . . . . . Machines | -11 -10 -9 -9 -9 -8 -8 -7 -7 -6 -6 -5 -5 -4 -3 -3 -3 ---------- Run | Yrd Mat Mat Min Exi Min Mat Fac DSF Fac Ext Fac DSF Fac Res Gar Res Machines Disabled 39 | . 2 3 . . 1 10 . 1 21 . . . . . 1 . Max in Single Turn 2 | . 1 1 . . 1 2 . . 2 . . . . . 1 . Garrison Access 7 | . . . . . . . . . 4 . 1 . 1 . . 1 Garrison Relay 1 | . . . . . . . . . . . . . . . 1 . Machines Repaired . | . . . . . . . . . . . . . . . . . Machines Dismantled . | . . . . . . . . . . . . . . . . . Machines Sabotaged . | . . . . . . . . . . . . . . . . . Overloaded Fab Kills . | . . . . . . . . . . . . . . . . . Hacking | -11 -10 -9 -9 -9 -8 -8 -7 -7 -6 -6 -5 -5 -4 -3 -3 -3 --------- Run | Yrd Mat Mat Min Exi Min Mat Fac DSF Fac Ext Fac DSF Fac Res Gar Res Machines Accessed 94 | . 5 12 . 5 . 12 2 . 31 7 4 . 1 9 1 5 Terminals 53 | . 4 6 . . . 10 2 . 15 7 1 . . 6 1 1 Fabricators 5 | . . . . . . . . . 4 . 1 . . . . . Repair Stations 8 | . . 2 . . . . . . 3 . . . . 1 . 2 Recycling Units 6 | . 1 2 . . . . . . 3 . . . . . . . Scanalyzers 9 | . . 2 . . . 2 . . 2 . 1 . . 1 . 1 Garrison Access 8 | . . . . . . . . . 4 . 1 . 1 1 . 1 Total Hacks 304 | . 19 36 . 50 . 43 4 . 79 12 10 . 3 30 3 15 Successful 227 | . 4 28 . 50 . 24 3 . 62 7 9 . 3 24 1 12 Failed 75 | . 15 7 . . . 19 1 . 16 5 1 . . 6 2 3 Catastrophic 7 | . . 1 . . . 5 . . . 1 . . . . . . Database Lockouts 2 | . . 1 . . . . . . 1 . . . . . . . Manual 53 | . 5 6 . 2 . 15 . . 14 . . . 1 8 1 1 Terminals 149 | . 17 18 . . . 34 4 . 35 12 1 . . 20 3 5 Fabricators 20 | . . . . . . . . . 17 . 3 . . . . . Repair Stations 17 | . . 5 . . . . . . 5 . . . . 2 . 5 Recycling Units 12 | . 2 7 . . . . . . 3 . . . . . . . Scanalyzers 35 | . . 6 . . . 9 . . 7 . 5 . . 6 . 2 Garrison Access 21 | . . . . . . . . . 12 . 1 . 3 2 . 3 Terminal Hacks 139 | . 4 13 . 50 . 15 3 . 27 7 1 . . 14 1 4 Record 63 | . . 1 . 49 . . . . 5 . . . . 7 . 1 Part Schematic 3 | . . . . . . . . . 1 1 . . . 1 . . Robot Analysis 3 | . 1 . . . . . . . 1 . . . . . . 1 Prototype ID Bank 24 | . 2 5 . . . 8 . . 8 . . . . 1 . . Open Door 6 | . . . . . . . . . . 6 . . . . . . Open DSF 10 | . . . . . . . 1 . 7 . 1 . . 1 . . Level Access Points 2 | . . . . . . . . . 1 . . . . 1 . . Branch Access Points 6 | . 1 1 . . . 1 . . 1 . . . . 1 . 1 Emergency Access Points 2 | . . 1 . . . . . . . . . . . . 1 . Terminal Index 1 | . . . . . . 1 . . . . . . . . . . Recycling Unit Index 1 | . . . . . . 1 . . . . . . . . . . Garrison Index 2 | . . . . . . . . . 1 . . . . 1 . . Alert Level 2 | . . 1 . . . . 1 . . . . . . . . . Unreport Threat 1 | . . . . . . . . . 1 . . . . . . . Locate Traps 9 | . . 3 . . . 3 1 . 1 . . . . . . 1 Reprogram Traps 1 | . . . . . . 1 . . . . . . . . . . Extermination Status 1 | . . . . . . . . . . . . . . 1 . . Registered Components 1 | . . 1 . . . . . . . . . . . . . . Derelict Proto ID Bank 1 | . . . . 1 . . . . . . . . . . . . Fabricator Hacks 17 | . . . . . . . . . 15 . 2 . . . . . Network Status 1 | . . . . . . . . . 1 . . . . . . . Load Schematic 10 | . . . . . . . . . 9 . 1 . . . . . Build 6 | . . . . . . . . . 5 . 1 . . . . . Repair Station Hacks 14 | . . 4 . . . . . . 4 . . . . 2 . 4 Scan Component 7 | . . 2 . . . . . . 2 . . . . 1 . 2 Repair 5 | . . 2 . . . . . . 1 . . . . 1 . 1 Refit 2 | . . . . . . . . . 1 . . . . . . 1 Recycling Unit Hacks 8 | . . 5 . . . . . . 3 . . . . . . . Process 1 | . . 1 . . . . . . . . . . . . . . Report Inventory 1 | . . 1 . . . . . . . . . . . . . . Retrieve Matter 2 | . . 2 . . . . . . . . . . . . . . Retrieve Components 4 | . . 1 . . . . . . 3 . . . . . . . Scanalyzer 34 | . . 6 . . . 9 . . 6 . 5 . . 6 . 2 Insert Component 16 | . . 3 . . . 4 . . 3 . 2 . . 3 . 1 Analyze 18 | . . 3 . . . 5 . . 3 . 3 . . 3 . 1 Garrison Access Hacks 13 | . . . . . . . . . 6 . 1 . 2 2 . 2 Unlock Access 1 | . . . . . . . . . . . . . . 1 . . Seal Access 7 | . . . . . . . . . 4 . 1 . 1 . . 1 Coupler Status 5 | . . . . . . . . . 2 . . . 1 1 . 1 Unauthorized Hacks 2 | . . . . . . . . . 1 . . . 1 . . . Terminals . | . . . . . . . . . . . . . . . . . Fabricators . | . . . . . . . . . . . . . . . . . Repair Stations . | . . . . . . . . . . . . . . . . . Recycling Units . | . . . . . . . . . . . . . . . . . Scanalyzers . | . . . . . . . . . . . . . . . . . Garrison Access 2 | . . . . . . . . . 1 . . . 1 . . . Reprogram 2 | . . . . . . . . . 1 . . . 1 . . . Data Cores Recovered 5 | . 1 . . . . 1 . . 2 . . . . . . 1 Used 2 | . . . . . . . . . 2 . . . . . . . Hacking Detections 65 | . 4 9 . . . 12 1 . 19 4 2 . 1 8 1 4 Full Trace Events 23 | . 1 6 . . . 5 1 . 5 1 1 . . 2 . 1 Feedback Events . | . . . . . . . . . . . . . . . . . Feedback Blocked . | . . . . . . . . . . . . . . . . . Robot Schematics Acquired . | . . . . . . . . . . . . . . . . . Robots Built . | . . . . . . . . . . . . . . . . . Authchips . | . . . . . . . . . . . . . . . . . Time . | . . . . . . . . . . . . . . . . . Total Robot Build Rating . | . . . . . . . . . . . . . . . . . Part Schematics Acquired 16 | . . 2 . . . 3 . . 4 1 2 . . 3 . 1 Parts Built 6 | . . . . . . . . . 5 . 1 . . . . . Authchips 1 | . . . . . . . . . 1 . . . . . . . Time 425 | . . . . . . . . . 375 . 50 . . . . . Total Part Build Rating 22 | . . . . . . . . . 17 . 5 . . . . . Parts Repaired 5 | . . 2 . . . . . . 1 . . . . 1 . 1 Time 225 | . . 102 . . . . . . 60 . . . . 26 . 37 Parts Recycled . | . . . . . . . . . . . . . . . . . Recycled Matter 131 | . . 131 . . . . . . . . . . . . . . Retrieved Matter 131 | . . 131 . . . . . . . . . . . . . . Retrieved Components 23 | . . 10 . . . . . . 13 . . . . . . . Parts Scanalyzed 14 | . . 2 . . . 4 . . 3 . 2 . . 2 . 1 Part Schematics Acquired 13 | . . 2 . . . 3 . . 3 . 2 . . 2 . 1 Parts Damaged . | . . . . . . . . . . . . . . . . . Bothacking | -11 -10 -9 -9 -9 -8 -8 -7 -7 -6 -6 -5 -5 -4 -3 -3 -3 ------------ Run | Yrd Mat Mat Min Exi Min Mat Fac DSF Fac Ext Fac DSF Fac Res Gar Res Used RIF Installer . | . . . . . . . . . . . . . . . . . Robots Hacked 15 | . . 10 . . . 1 . . . 3 . 1 . . . . Non-combat 11 | . . 9 . . . 1 . . . 1 . . . . . . Combat 4 | . . 1 . . . . . . . 2 . 1 . . . . Robot Hacks Applied 20 | . . 15 . . . 1 . . . 3 . 1 . . . . parse_system 14 | . . 10 . . . 1 . . . 2 . 1 . . . . no_distress 5 | . . 5 . . . . . . . . . . . . . . check_alert 1 | . . . . . . . . . . 1 . . . . . . Relay Couplers Released 3 | . . . . . . . . . . . . . . . 3 . Machine Destruction 3 | . . . . . . . . . . . . . . . 3 . Fabnet Peak Effective % . | . . . . . . . . . . . . . . . . . Robots Rewired 3 | . . . . . . . . . . 3 . . . . . . Allies Hacked . | . . . . . . . . . . . . . . . . . Hacks Repelled . | . . . . . . . . . . . . . . . . . Allies | -11 -10 -9 -9 -9 -8 -8 -7 -7 -6 -6 -5 -5 -4 -3 -3 -3 -------- Run | Yrd Mat Mat Min Exi Min Mat Fac DSF Fac Ext Fac DSF Fac Res Gar Res Total Allies 17 | . . . . . 1 . . 4 . 12 . . . . . . Largest Group 6 | . . . . . 1 . . 3 3 6 1 . . . . . Highest-Rated Group 313 | . . . . . 5 . . 153 153 313 159 . . . . . Highest-Rated Ally 159 | . . . . . 5 . . 90 90 159 159 . . . . . Total Orders 4 | . . . . . . . . . 4 . . . . . . . STAY 3 | . . . . . . . . . 3 . . . . . . . FOLLOW 1 | . . . . . . . . . 1 . . . . . . . Ally Attacks 155 | . . . . . 3 . . 13 18 121 . . . . . . Total Damage 3374 | . . . . . 26 . . 350 817 2181 . . . . . . Kills 27 | . . . . . 1 . . 5 5 16 . . . . . . Allies Corrupted . | . . . . . . . . . . . . . . . . . Allies Melted 1 | . . . . . . . . 1 . . . . . . . . Field Lobotomies 5 | . . . . . 1 . . 4 . . . . . . . . Intel | -11 -10 -9 -9 -9 -8 -8 -7 -7 -6 -6 -5 -5 -4 -3 -3 -3 ------- Run | Yrd Mat Mat Min Exi Min Mat Fac DSF Fac Ext Fac DSF Fac Res Gar Res Robot Analysis Total 3 | . 1 . . . . . . . 1 . . . . . . 1 Derelict Logs Recovered . | . . . . . . . . . . . . . . . . . Drone Launches . | . . . . . . . . . . . . . . . . . Drone Recoveries . | . . . . . . . . . . . . . . . . . Exploration | -11 -10 -9 -9 -9 -8 -8 -7 -7 -6 -6 -5 -5 -4 -3 -3 -3 ------------- Run | Yrd Mat Mat Min Exi Min Mat Fac DSF Fac Ext Fac DSF Fac Res Gar Res Turns Passed 14531 | 82 1548 2741 828 1400 404 2148 39 303 2204 650 142 65 238 544 246 949 Spaces Moved 13216 | 50 994 1347 453 858 224 1855 88 496 3302 918 231 116 433 837 296 718 Core 18 | 13 2 3 . . . . . . . . . . . . . . Treads 3380 | 37 118 965 453 858 224 725 . . . . . . . . . . Legs 1253 | . 874 379 . . . . . . . . . . . . . . Wheels . | . . . . . . . . . . . . . . . . . Hover 758 | . . . . . . . . . . . . . . . 40 718 Flight 7807 | . . . . . . 1130 88 496 3302 918 231 116 433 837 256 . Fastest Speed 23 | 50 120 120 160 160 160 29 26 26 26 27 24 23 27 24 29 49 Average Speed 75 | 131 131 149 160 160 160 80 26 26 27 27 25 25 27 26 50 101 Slowest Speed 400 | 160 200 400 160 160 160 160 29 29 100 105 27 28 28 32 114 160 Overloaded Moves . | . . . . . . . . . . . . . . . . . Propulsion Burnouts . | . . . . . . . . . . . . . . . . . Robots Hopped 7 | . . . . . . . . 1 6 . . . . . . . Cave-ins Triggered 2 | . . . 2 . . . . . . . . . . . . . Exploration Rate (%) 51 | 3 96 72 59 92 54 91 4 96 61 67 5 90 12 28 37 14 Regions Visited 16 Branch Regions 4 Pre-discovered Areas 2 | . . . 1 1 . . . . . . . . . . . . Known Exits Taken 8 | . 1 1 . . 1 . 1 . 1 1 1 . . 1 . . Unknown Exits Taken 5 | 1 . . 1 1 . 1 . . . . . . 1 . . . Scrap Searched 2 | . . . 1 . 1 . . . . . . . . . . . Spaces Dug 361 | . . . 21 . . 78 5 6 107 15 6 1 24 54 7 37 Terrain Destroyed 729 | . 1 15 71 . 11 344 5 6 132 15 6 1 24 54 7 37 Melee 232 | . . . . . . 20 5 6 57 15 6 1 24 54 7 37 Projectile 11 | . 1 5 2 . 1 2 . . . . . . . . . . AOE 486 | . . 10 69 . 10 322 . . 75 . . . . . . . Terrain Rammed . | . . . . . . . . . . . . . . . . . Walls Destroyed . | . . . . . . . . . . . . . . . . . Machines Disabled . | . . . . . . . . . . . . . . . . . Actions | -11 -10 -9 -9 -9 -8 -8 -7 -7 -6 -6 -5 -5 -4 -3 -3 -3 --------- Run | Yrd Mat Mat Min Exi Min Mat Fac DSF Fac Ext Fac DSF Fac Res Gar Res Total 16762 | 67 1153 1856 518 887 254 2356 96 647 4431 1255 303 146 508 1052 373 860 Wait 2165 | . 55 292 30 13 8 266 . 86 879 239 53 1 35 113 33 62 Move 13186 | 49 993 1346 452 857 223 1854 87 493 3289 917 230 115 432 836 295 718 Hop 7 | . . . . . . . . 1 6 . . . . . . . Pick Up 227 | 11 26 33 2 2 2 43 2 14 48 6 5 5 6 16 2 4 Fast Attach 14 | . . . . . . . . . . . . . . . 3 11 Attach 111 | 6 7 11 5 2 2 25 1 6 17 5 3 1 5 11 1 3 Detach 24 | . 3 . 2 2 1 2 . 1 7 2 1 . . 1 1 1 Swap 94 | . 5 27 5 . 2 14 . 7 16 3 2 2 2 5 2 2 Drop 149 | 1 17 20 1 1 1 32 1 10 38 3 3 5 2 4 3 7 Fire 251 | . 47 104 21 . 15 49 . 4 6 1 . . . . 3 1 Melee 416 | . . 23 . . . 71 5 18 89 43 6 6 26 66 12 51 Ram . | . . . . . . . . . . . . . . . . . Kick . | . . . . . . . . . . . . . . . . . Crush . | . . . . . . . . . . . . . . . . . Escape Stasis 108 | . . . . . . . . 7 36 36 . 11 . . 18 . Rewire 10 | . . . . 10 . . . . . . . . . . . . Trap . | . . . . . . . . . . . . . . . . . Miscellaneous . | . . . . . . . . . . . . . . . . . Route ------- -11/Scrapyard -10/Materials (discovered 5 exits: *Mat x3 / *Min / *Sub) -9/Materials (discovered 5 exits: *Mat x2 / *Min x2 / *Sto) -9/Mines (discovered 2 exits: *Mat / *Exi) -9/Exiles -8/Mines -8/Materials (discovered 3 exits: *Fac x3) -7/Factory -7/DSF -6/Factory (discovered 8 exits: *Fac x4 / *Low x2 / *Ext x2) -6/Extension (discovered 3 exits: *Fac x2 / [*Cet]) -5/Factory -5/DSF -4/Factory -3/Research (discovered 6 exits: Res x3 / *Qua x2 / Gar) -3/Garrison -3/Research (discovered 2 exits: Qua x2) History --------- Turn | Location | Event 4 | -11/Scrapyard | Discovered new exit (range 15) 83 | -11/Scrapyard | Entered Materials 312 | -10/Materials | Build established: Mutant 410 | -10/Materials | Identified exit to Mines 430 | -10/Materials | Discovered new exit (range 14) 510 | -10/Materials | Identified exit to Materials 917 | -10/Materials | Discovered exit to Materials (range 14) 1342 | -10/Materials | Discovered exit to Materials (range 4) 1358 | -10/Materials | Discovered new exit (range 8) 1366 | -10/Materials | Identified exit to Subcaves 1631 | -10/Materials | Entered another Materials area 1631 | -9/Materials | Evolved 2 slots: Utility x2 2011 | -9/Materials | Build established: Hacker-Mutant 2016 | -9/Materials | Discovered new exit (range 16) 2305 | -9/Materials | Identified exit to Storage 2792 | -9/Materials | Repaired Imp. Assault Rifle 2850 | -9/Materials | Discovered new exit (range 4) 2874 | -9/Materials | Identified exit to Materials 2914 | -9/Materials | Identified exit to Mines 3704 | -9/Materials | Discovered exit to Materials (range 5) 4155 | -9/Materials | Repaired Imp. Assault Rifle 4254 | -9/Materials | Central database locked down 4372 | -9/Materials | Entered Mines 4373 | -9/Mines | Assembled infested the area 4396 | -9/Mines | Met a Derelict bent on vengeance 4428 | -9/Mines | Discovered exit to Materials (range 16) 4669 | -9/Mines | Build established: Mutant 4853 | -9/Mines | Learned location of Storage (-9) 4927 | -9/Mines | Crushed by falling debris 4955 | -9/Mines | Crushed by falling debris 4955 | -9/Mines | Core integrity fell below 50% 4955 | -9/Mines | System corruption reached 10% 5002 | -9/Mines | Lost 6 parts (1p1n3u1w) 5193 | -9/Mines | Discovered new exit (range 5) 5200 | -9/Mines | Entered Exiles 5237 | -9/Exiles | Met 8R-AWN 5269 | -9/Exiles | Met EX-HEX 5386 | -9/Exiles | Met EX-DEC 5418 | -9/Exiles | Visited The Gauntlet 5759 | -9/Exiles | Learned location of Zion (-6) 5820 | -9/Exiles | Discovered new exit (range 11) 5948 | -9/Exiles | Met EX-BIN 6084 | -9/Exiles | Aligned with FarCom system 6086 | -9/Exiles | Given EX-Vault access code 6148 | -9/Exiles | Opened EX-Vault 6186 | -9/Exiles | Found Field Lobotomy Kit 6217 | -9/Exiles | Warned to stay clear of 0b10 Research branches 6600 | -9/Exiles | Left Exiles lab with Field Lobotomy Kit 6600 | -9/Exiles | Entered Mines 6919 | -8/Mines | Assimilated S-10 Pest with FLK Orb 6980 | -8/Mines | Discovered exit to Materials (range 14) 7004 | -8/Mines | Entered Materials 7004 | -8/Materials | Evolved 2 slots: Propulsion x2 8461 | -8/Materials | Discovered new exit (range 3) 8550 | -8/Materials | Lost 4 parts (1p2n1u) 8673 | -8/Materials | Core integrity fell below 50% 8690 | -8/Materials | Discovered new exit (range 9) 8717 | -8/Materials | Lost 3 parts (1p1n1u) 8829 | -8/Materials | Build established: Sprinter 8904 | -8/Materials | Lost 3 parts (1p2u) 9126 | -8/Materials | Discovered new exit (range 15) 9128 | -8/Materials | System corruption reached 10% 9152 | -8/Materials | Entered Factory 9152 | -7/Factory | Evolved 2 slots: Utility x2 9191 | -7/Factory | Identified exit to DSF 9191 | -7/Factory | Entered DSF 9203 | -7/DSF | Discovered new exit (range 12) 9241 | -7/DSF | Additional patrols routed to DSF 9245 | -7/DSF | Assimilated H-61 Shepherd with FLK Orb 9327 | -7/DSF | Assimilated G-50 Soldier with FLK Orb 9435 | -7/DSF | Assimilated B-48 Gladiator with FLK Orb 9438 | -7/DSF | Assimilated X-67 Chaingunner with FLK Orb 9478 | -7/DSF | Build established: Hacker-Sprinter 9494 | -7/DSF | Entered Factory 9494 | -6/Factory | Accompanied by 3 allies 9494 | -6/Factory | Evolved 2 slots: Power x1, Weapon x1 9700 | -6/Factory | Fabricated Imp. VTOL Module (x1) 9760 | -6/Factory | Fabricated Imp. VTOL Module (x1) 9939 | -6/Factory | Fabricated Imp. VTOL Module (x1) 10683 | -6/Factory | Discovered new exit (range 15) 11063 | -6/Factory | Discovered new exit (range 9) 11147 | -6/Factory | Repaired Imp. VTOL Module 11162 | -6/Factory | Identified exit to Factory 11182 | -6/Factory | Identified exit to Lower Caves 11182 | -6/Factory | Identified exit to Extension 11463 | -6/Factory | Central database locked down 11597 | -6/Factory | Fabricated Imp. Cesium-ion Thruster? 11624 | -6/Factory | Fabricated Imp. Cesium-ion Thruster? 11698 | -6/Factory | Entered Extension 11732 | -6/Extension | Spotted B-75 Beast 12082 | -6/Extension | Rescued a captive Derelict 12082 | -6/Extension | Rescued a captive Derelict 12085 | -6/Extension | Rescued a captive Derelict 12087 | -6/Extension | Rescued a captive Derelict 12113 | -6/Extension | Rescued A7 12185 | -6/Extension | Rescued a captive Derelict 12186 | -6/Extension | Rescued a captive Derelict 12207 | -6/Extension | Rescued a captive Derelict 12208 | -6/Extension | Rescued a captive Derelict 12261 | -6/Extension | Spotted B-75 Beast 12269 | -6/Extension | Discovered exit to Factory (range 3) 12289 | -6/Extension | Lost 5 allies 12329 | -6/Extension | Discovered exit to Factory (range 16) 12329 | -6/Extension | Discovered new exit (range 16) 12348 | -6/Extension | Entered Factory 12348 | -5/Factory | Accompanied by 1 ally (A7) 12348 | -5/Factory | Evolved 2 slots: Propulsion x1, Utility x1 12412 | -5/Factory | Identified exit to DSF 12479 | -5/Factory | Fabricated Cld. Cesium-ion Thruster (x1) 12490 | -5/Factory | Entered DSF 12523 | -5/DSF | Additional patrols routed to DSF 12551 | -5/DSF | Discovered new exit (range 14) 12555 | -5/DSF | Entered Factory 12555 | -4/Factory | Evolved 2 slots: Utility x2 12749 | -4/Factory | Found Prototype Hackware 12750 | -4/Factory | Identified Exp. Hacking Suite 12790 | -4/Factory | Build established: Wizard-Sprinter 12792 | -4/Factory | Discovered new exit (range 5) 12793 | -4/Factory | Entered Research 12793 | -3/Research | Evolved 2 slots: Propulsion x1, Utility x1 12811 | -3/Research | Identified exit to Quarantine 12999 | -3/Research | Repaired Cld. Cesium-ion Thruster 13043 | -3/Research | Spotted B-86 Titan 13064 | -3/Research | Spotted B-86 Titan 13133 | -3/Research | Identified exit to Research 13293 | -3/Research | Search patrols dispatched 13312 | -3/Research | Found Fusion Bomb Launcher 13315 | -3/Research | Lost 6 parts (1p4n1w) 13336 | -3/Research | Identified exit to Garrison 13337 | -3/Research | Entered Garrison 13415 | -3/Garrison | Triggered checkpoint 13446 | -3/Garrison | Garrison Relay disabled 13529 | -3/Garrison | Spotted B-86 Titan 13534 | -3/Garrison | Triggered checkpoint 13545 | -3/Garrison | Discovered new exit (range 12) 13554 | -3/Garrison | Spotted B-86 Titan 13579 | -3/Garrison | Core integrity fell below 50% 13583 | -3/Garrison | Entered Research 13606 | -3/Research | Lost 6 parts (1p2n3u) 13761 | -3/Research | Build established: Wizard-Mutant 14384 | -3/Research | Repaired Cmb. Linear Gravjet? 14463 | -3/Research | System corruption reached 10% 14473 | -3/Research | Core integrity fell below 20% 14532 | -3/Research | Destroyed by P-80 Master with Gamma Rifle Last Messages --------------- station. 14511_ Acquired Prototype Impact Weapon. 14511_ Identified Thunder Hammer. 14514_ System Shield destroyed. 14514_ Nova Cannon destroyed. 14514_ Acquired Thunder Hammer. 14516_ System corrupted: IFF burst signal emitted. 14525_ Destroyed Adv. Target Analyzer. 14525_ P-80 Master system corrupted by crushing effect. 14525_ Thunder Hammer follow-up attack on P-80 Master. 14525_ P-80 Master knocked back. 14530_ P-80 Master resets P-80 Master, system corruption cleaned. 14532_ System corrupted: Matter fused (-10). 14532_ P-80 Master shuts down. [Achievement: 10k Club] [Achievement: Just Browsing] Map ----- +----------------------------------------------------+ | ???????????????????# # # # | | ???????????????????# # ! # + | | ???????????????????# # !! # # ##### | | ???????????????????# # !! # # #???? | | ???????????????????# ###+############# ##### | | ???????????????????# | | ???????????????????# | | ???????????????????# | | ???????????????????# ##### | | ???????????????????############### ####+######? | | ?????????????????????????????????# # #? | | ?????????????????????????????????# # #? | | ????????????????????????????????s# + """ #? | | ???????????????????????????????s?s # """ #? | | ?????????????????????????????????# #! """ #? | | ?????????????????????????????????#s # ! #? | | ?????????????????????????????????# # #? | | ?????????????????????????????????# # ## | | ?????????????????????????????????# "##########" | | ?????????????????????????????????# # " | | ?????????????????????????????????# # " | | ?????????????????????????????????# # ] " | | ????????????????????############## # # | | ????????????????????# # # ! # | | ????????????????????# # # # | | ????????????????????#"" @""""" # ###+######## | | ????????????????????#"Rpp """"" # | | ????????????????????#"" [ """"" + | | ????????????????????# =* mY m # | | ????????????????????# # | | ????????????????????# ! # ##########+# | | ????????????????????# ! p # #??????# | | ????????????????????# !! # ######## | | ????????????????????# # ! ! # | | ????????????????????# / # | | ????????????????????########## ### # | | ?????????????????????????????###?# # | | ?????????????????????????????????# """ # | | ?????????????????????????????????# """ # | | ???????????????????############### """ # | | ???????????????????# w ##### | | ???????????????????# ^ ##??? | | ???????????????????# ^ #???? | | ???????????????????# ^ ### #???? | | ?????????????????####+################### #???? | | ?????????????????# #????# # #???? | | ?????????????????# #????# ! # #???? | | ?????????????????#""" #????# + #???? | | ?????????????????#"R #????# # #???? | | ?????????????????# "" #????# # #???? | +----------------------------------------------------+ Best States ------------- Heat Dissipation 46 Energy Generation 43 Energy Capacity 590 Matter Stores 300 Matter Capacity 400 Sight Range 16 Robot Scan Range 14 Terrain Scan Density 210 ECM Strength 2 Additional Mass Support 6 Corruption Block 20 Armor Coverage 225 Resistance: KI 30 Evasion (%) 65 Melee Accuracy 8 Recoil Reduction 4 Offensive Hacking 78 Defensive Hacking 10 Authchip Count 3 Trap Extractor Capacity 8 Item Schematics ----------------- Imp. Assault Rifle | -9/Materials | Scanalyzed Datajack | -9/Materials | Scanalyzed Imp. VTOL Module | -8/Materials | Scanalyzed Mni. Grenade Launcher | -8/Materials | Scanalyzed Adv. ECM Suite | -8/Materials | Scanalyzed Imp. Cesium-ion Thruster | -6/Factory | Scanalyzed Hvy. Missile Launcher | -6/Factory | Scanalyzed Lgt. Fission Core | -6/Factory | Scanalyzed Adv. Transmission Jammer | -6/Factory | Hacked Adv. Cooling System | -6/Extension | Hacked Targeting Computer | -5/Factory | Scanalyzed Cld. Cesium-ion Thruster | -5/Factory | Scanalyzed Imp. Remote Datajack | -3/Research | Scanalyzed Adv. Datajack | -3/Research | Scanalyzed Antimissile System | -3/Research | Hacked Nova Cannon | -3/Research | Scanalyzed Robot Schematics ------------------ None Fabricated ------------ Imp. VTOL Module | x1 | -6/Factory | Authchip Imp. VTOL Module | x1 | -6/Factory Imp. VTOL Module | x1 | -6/Factory Imp. Cesium-ion Thruster | x1 | -6/Factory Imp. Cesium-ion Thruster | x1 | -6/Factory Cld. Cesium-ion Thruster | x1 | -5/Factory Alien Tech Used ----------------- None Achievements -------------- 10k Club Armchair Analyst Can't Catch Me Dangerous Findings Just Browsing Party Time Prison Break Respectable Loadout root@ Challenges ------------ None Game ------ Seed SingularityHelicalInsulator Manual? 0 Play Time 04:51:27 Cumulative 30.4 hours Start 2024.04.18 @ 20:50:49 End 2024.04.19 @ 22:27:12 Sessions 5 Manual Loads 0 Difficulty Rogue Special Mode None Game No. 52 Rogue 52 Adventurer 0 Explorer 0 Win Type - Total 0 Types 0/0/0/0/0/0/0/0/0 Lore% 21 Gallery% 27 Achievement% 23 Wizard Run 0 Options --------- Layout 1 ASCII 0 Keyboard 1 Movement Numpad Keybinds 0 Fullscreen 1 Font 24/Smallcaps Map View 50x35 Zoom Use 0% Tactical HUD 1 Map Filters NONE Filters NONE Steam 1 RUN: f2968f38-ddff-468e-baf8-24b5f6710834